[Event "48th Rilton Cup 2018"]
[Site "Stockholm"]
[Date "2018.12.28"]
[Round "2"]
[White "Debashis, Das"]
[Black "Mikalsen, Erlend"]
[Result "0-1"]
[ECO "A20"]
[WhiteElo "2544"]
[BlackElo "2357"]
[Annotator "ChessBase"]
[PlyCount "79"]
[EventDate "2018.12.27"]
[EventType "swiss"]
[EventCountry "SWE"]
[SourceTitle "playchess.com"]
[Source "ChessBase"]
[SourceQuality "1"]
[TimeControl "40/5400+30:1800+30"]

1. c4 {[%emt 0:00:00]} e5 {[%emt 0:00:00]} 2. d3 {[%emt 0:00:00]} Nf6 {[%emt 0:00:29]} 3. Nf3 {[%emt 0:00:16]} Nc6 {[%emt 0:02:25]} 4. a3 {[%emt 0:00:09]} g6 {[%emt 0:02:48]} 5. b4 {[%emt 0:00:46]} d6 {[%emt 0:01:43]} 6. Bb2 {[%emt 0:00:13]} Bg7 {[%emt 0:00:13]} 7. e3 {[%emt 0:00:09]} O-O {[%emt 0:00:07]} 8. Be2 {[%emt 0:00:07]} h6 {[%emt 0:09:30]} 9. Nc3 {[%emt 0:01:15]} g5 {[%emt 0:03:30]} 10. O-O {[%emt 0:10:57]} g4 {[%emt 0:09:00]} 11. Nd2 {[%emt 0:00:15]} h5 {[%emt 0:00:34]} 12. Re1 {[%emt 0:07:06]} Nh7 {[%emt 0:01:12]} 13. Bf1 {[%emt 0:02:36]} h4 {[%emt 0:03:13]} 14. Nd5 {[%emt 0:03:08]} f5 {[%emt 0:01:43]} 15. d4 {[%emt 0:16:54]} Ne7 {[%emt 0:07:16]} 16. dxe5 {[%emt 0:02:52]} dxe5 {[%emt 0:00:06]} 17. Qc2 {[%emt 0:06:41]} c6 {[%emt 0:02:00]} 18. Nxe7+ {[%emt 0:00:48]} Qxe7 {[%emt 0:00:05]} 19. c5 {[%emt 0:00:07]} Ng5 {[%emt 0:03:44]} 20. Rad1 {[%emt 0:06:07]} Be6 {[%emt 0:01:04]} 21. f4 {[%emt 0:14:19]} gxf3 {[%emt 0:00:37]} 22. Nxf3 {[%emt 0:00:15]} Nxf3+ {[%emt 0:07:36]} 23. gxf3 {[%emt 0:00:06]} Rad8 {[%emt 0:07:11]} 24. Bc4 {[%emt 0:00:54]} h3 {[%emt 0:02:41]} 25. Kh1 {[%emt 0:04:40]} Bxc4 {[%emt 0:00:42]} 26. Qxc4+ {[%emt 0:00:05]} Qf7 {[%emt 0:00:05]} 27. Qe2 {[%emt 0:00:40]} Qb3 {[%emt 0:10:42]} 28. Rd6 {[%emt 0:05:26]} Rxd6 {[%emt 0:02:36]} 29. cxd6 {[%emt 0:00:06]} Kf7 {[%emt 0:01:10]} 30. Rg1 {[%emt 0:04:20]} Bf6 {[%emt 0:02:47]} 31. e4 {[%emt 0:06:15]} f4 {[%emt 0:01:14]} 32. Rd1 {[%emt 0:06:34]} Rg8 {[%emt 0:03:33]} 33. Rg1 {[%emt 0:00:35]} Rxg1+ {[%emt 0:00:20]} 34. Kxg1 {[%emt 0:00:02]} Ke6 {[%emt 0:00:46]} 35. Kf1 {[%emt 0:00:21]} Kxd6 {[%emt 0:00:48]} 36. Qd2+ {[%emt 0:00:05]} Ke6 {[%emt 0:01:23]} 37. Ke2 {[%emt 0:01:23]} Bh4 {[%emt 0:02:21]} 38. Qc1 {[%emt 0:01:17]} Bd8 {[%emt 0:03:57]} 39. Ba1 {[%emt 0:01:09]} Bb6 {[%emt 0:00:17]} 40. Qf1 {[%emt 0:00:30]} 0-1

[Event "48th Rilton Cup 2018"]
[Site "Stockholm"]
[Date "2018.12.28"]
[Round "2"]
[White "Lalith Babu M R"]
[Black "Ternault, Mathieu"]
[Result "1-0"]
[ECO "A46"]
[WhiteElo "2529"]
[BlackElo "2348"]
[Annotator "ChessBase"]
[PlyCount "79"]
[EventDate "2018.12.27"]
[EventType "swiss"]
[EventCountry "SWE"]
[SourceTitle "playchess.com"]
[Source "ChessBase"]
[SourceQuality "1"]
[TimeControl "40/5400+30:1800+30"]

1. d4 {[%emt 0:00:00]} Nf6 {[%emt 0:00:05]} 2. Nf3 {[%emt 0:00:00]} e6 {[%emt 0:00:27]} 3. c4 {[%emt 0:00:00]} Nc6 {[%emt 0:00:32]} 4. g3 {[%emt 0:00:00]} Bb4+ {[%emt 0:03:17]} 5. Bd2 {[%emt 0:00:17]} Bxd2+ {[%emt 0:00:06]} 6. Qxd2 {[%emt 0:01:49]} d5 {[%emt 0:00:06]} 7. Bg2 {[%emt 0:00:30]} O-O {[%emt 0:05:30]} 8. O-O {[%emt 0:06:07]} dxc4 {[%emt 0:05:30]} 9. Rc1 {[%emt 0:00:42]} Rb8 {[%emt 0:10:47]} 10. Rxc4 {[%emt 0:01:07]} Qd6 {[%emt 0:02:51]} 11. Na3 {[%emt 0:05:55]} b5 {[%emt 0:03:47]} 12. Rcc1 {[%emt 0:06:57]} Rb6 {[%emt 0:03:43]} 13. Qd3 {[%emt 0:30:14]} a6 {[%emt 0:19:53]} 14. e4 {[%emt 0:15:57]} Qe7 {[%emt 0:07:00]} 15. e5 {[%emt 0:02:28]} Nd5 {[%emt 0:01:30]} 16. Nb1 {[%emt 0:00:03]} Rd8 {[%emt 0:05:34]} 17. Nbd2 {[%emt 0:00:31]} Ndb4 {[%emt 0:04:38]} 18. Qe3 {[%emt 0:01:13]} Nd5 {[%emt 0:00:25]} 19. Qe2 {[%emt 0:02:02]} Qb4 {[%emt 0:03:34]} 20. Qd3 {[%emt 0:01:18]} f5 {[%emt 0:05:01]} 21. a3 {[%emt 0:01:24]} Qf8 {[%emt 0:01:41]} 22. Nb3 {[%emt 0:00:16]} h6 {[%emt 0:02:41]} 23. Nc5 {[%emt 0:02:21]} g5 {[%emt 0:01:20]} 24. Nb3 {[%emt 0:02:42]} a5 {[%emt 0:02:38]} 25. h3 {[%emt 0:02:28]} Nde7 {[%emt 0:01:21]} 26. Qc3 {[%emt 0:01:14]} Nd5 {[%emt 0:01:35]} 27. Qd2 {[%emt 0:00:30]} a4 {[%emt 0:01:34]} 28. Nc5 {[%emt 0:00:12]} Nde7 {[%emt 0:00:43]} 29. Rd1 {[%emt 0:01:40]} g4 {[%emt 0:03:13]} 30. hxg4 {[%emt 0:00:04]} fxg4 {[%emt 0:00:02]} 31. Nh2 {[%emt 0:00:05]} Nxd4 {[%emt 0:00:54]} 32. Kh1 {[%emt 0:00:03]} Nef5 {[%emt 0:02:02]} 33. Ne4 {[%emt 0:00:48]} Nc6 {[%emt 0:01:28]} 34. Qf4 {[%emt 0:00:17]} Rb8 {[%emt 0:00:52]} 35. Nf6+ {[%emt 0:00:06]} Kh8 {[%emt 0:00:12]} 36. Bxc6 {[%emt 0:00:06]} b4 {[%emt 0:00:50]} 37. Nhxg4 {[%emt 0:00:33]} bxa3 {[%emt 0:00:32]} 38. bxa3 {[%emt 0:00:07]} Ba6 {[%emt 0:00:34]} 39. Nd7 {[%emt 0:01:05]} Rxd7 {[%emt 0:00:31]} 40. Rxd7 {[%emt 0:00:19]} 1-0

[Event "48th Rilton Cup 2018"]
[Site "Stockholm"]
[Date "2018.12.28"]
[Round "2"]
[White "Santos Ruiz, Miguel"]
[Black "Krishna Teja, N."]
[Result "1-0"]
[ECO "B18"]
[WhiteElo "2523"]
[BlackElo "2340"]
[Annotator "ChessBase"]
[PlyCount "93"]
[EventDate "2018.12.27"]
[EventType "swiss"]
[EventCountry "SWE"]
[SourceTitle "playchess.com"]
[Source "ChessBase"]
[SourceQuality "1"]
[TimeControl "40/5400+30:1800+30"]

1. e4 {[%emt 0:00:00]} c6 {[%emt 0:00:00]} 2. d4 {[%emt 0:00:00]} d5 {[%emt 0:00:00]} 3. Nc3 {[%emt 0:00:00]} dxe4 {[%emt 0:00:00]} 4. Nxe4 {[%emt 0:00:00]} Bf5 {[%emt 0:00:00]} 5. Ng3 {[%emt 0:00:00]} Bg6 {[%emt 0:00:03]} 6. h4 {[%emt 0:00:01]} h6 {[%emt 0:00:06]} 7. Nf3 {[%emt 0:00:04]} e6 {[%emt 0:00:08]} 8. Ne5 {[%emt 0:00:19]} Bh7 {[%emt 0:00:03]} 9. Bd3 {[%emt 0:00:04]} Bxd3 {[%emt 0:00:08]} 10. Qxd3 {[%emt 0:00:04]} Nf6 {[%emt 0:00:25]} 11. Bd2 {[%emt 0:00:13]} Nbd7 {[%emt 0:00:07]} 12. f4 {[%emt 0:00:08]} c5 {[%emt 0:00:20]} 13. O-O-O {[%emt 0:01:54]} cxd4 {[%emt 0:00:06]} 14. Ng6 {[%emt 0:00:48]} Rg8 {[%emt 0:00:08]} 15. Nxf8 {[%emt 0:13:50]} Nxf8 {[%emt 0:00:17]} 16. Bb4 {[%emt 0:00:10]} Qb6 {[%emt 0:02:58]} 17. Qxd4 {[%emt 0:23:10]} Qxd4 {[%emt 0:01:01]} 18. Rxd4 {[%emt 0:02:08]} Rd8 {[%emt 0:00:03]} 19. Rc4 {[%emt 0:09:06]} b6 {[%emt 0:14:47]} 20. Re1 {[%emt 0:05:15]} Nd5 {[%emt 0:03:02]} 21. Bd2 {[%emt 0:07:19]} Nd7 {[%emt 0:03:01]} 22. Ne4 {[%emt 0:11:30]} Ke7 {[%emt 0:06:02]} 23. Rd4 {[%emt 0:04:15]} Nb8 {[%emt 0:08:49]} 24. f5 {[%emt 0:02:08]} Nc6 {[%emt 0:03:48]} 25. Rc4 {[%emt 0:00:04]} Kd7 {[%emt 0:04:04]} 26. fxe6+ {[%emt 0:00:54]} fxe6 {[%emt 0:00:02]} 27. Nc3 {[%emt 0:00:37]} Rdf8 {[%emt 0:00:23]} 28. Rg4 {[%emt 0:01:37]} g5 {[%emt 0:04:38]} 29. Nxd5 {[%emt 0:05:11]} exd5 {[%emt 0:00:15]} 30. hxg5 {[%emt 0:00:00]} hxg5 {[%emt 0:01:50]} 31. Rh1 {[%emt 0:03:14]} Rf5 {[%emt 0:00:24]} 32. b3 {[%emt 0:03:21]} d4 {[%emt 0:08:38]} 33. Kd1 {[%emt 0:02:36]} b5 {[%emt 0:02:30]} 34. Rh7+ {[%emt 0:00:42]} Kd6 {[%emt 0:02:45]} 35. Rh6+ {[%emt 0:01:41]} Kd7 {[%emt 0:00:03]} 36. Rh7+ {[%emt 0:00:31]} Kd6 {[%emt 0:02:21]} 37. Rh6+ {[%emt 0:00:03]} Kd7 {[%emt 0:00:02]} 38. Re4 {[%emt 0:00:12]} Rgf8 {[%emt 0:04:06]} 39. Ree6 {[%emt 0:00:13]} Rf1+ {[%emt 0:01:29]} 40. Be1 {[%emt 0:02:24]} Nb4 {[%emt 0:04:02]} 41. a3 {[%emt 0:34:12]} Na2 {[%emt 0:32:40]} 42. Ra6 {[%emt 0:00:00]} Nc3+ {[%emt 0:00:00]} 43. Kd2 {[%emt 0:00:00]} R8f2+ {[%emt 0:00:00]} 44. Kd3 {[%emt 0:00:00]} Rxe1 {[%emt 0:00:00]} 45. Rxa7+ {[%emt 0:00:00]} Ke8 {[%emt 0:00:00]} 46. Kxd4 {[%emt 0:00:00]} Ne2+ {[%emt 0:00:00]} 47. Ke4 1-0

[Event "48th Rilton Cup 2018"]
[Site "Stockholm"]
[Date "2018.12.28"]
[Round "2"]
[White "Thybo, Jesper Sondergaard"]
[Black "Tryggestad, Andreas Garberg"]
[Result "1-0"]
[ECO "A05"]
[WhiteElo "2519"]
[BlackElo "2333"]
[Annotator "ChessBase"]
[PlyCount "49"]
[EventDate "2018.12.27"]
[EventType "swiss"]
[EventCountry "SWE"]
[SourceTitle "playchess.com"]
[Source "ChessBase"]
[SourceQuality "1"]
[TimeControl "40/5400+30:1800+30"]

1. Nf3 {[%emt 0:00:00]} Nf6 {[%emt 0:00:00]} 2. c4 {[%emt 0:00:00]} g6 {[%emt 0:00:00]} 3. Nc3 {[%emt 0:00:00]} d5 {[%emt 0:00:00]} 4. cxd5 {[%emt 0:00:00]} Nxd5 {[%emt 0:00:00]} 5. Qb3 {[%emt 0:00:00]} Nb6 {[%emt 0:00:00]} 6. d4 {[%emt 0:00:00]} Bg7 {[%emt 0:00:21]} 7. e4 {[%emt 0:00:01]} Bg4 {[%emt 0:01:07]} 8. Bb5+ {[%emt 0:00:51]} c6 {[%emt 0:00:57]} 9. Ng5 {[%emt 0:00:10]} O-O {[%emt 0:01:01]} 10. Be2 {[%emt 0:00:12]} Bxe2 {[%emt 0:05:56]} 11. Nxe2 {[%emt 0:00:06]} N8d7 {[%emt 0:04:05]} 12. Qh3 {[%emt 0:13:59]} h6 {[%emt 0:01:30]} 13. Nf3 {[%emt 0:00:07]} Kh7 {[%emt 0:00:15]} 14. O-O {[%emt 0:10:41]} c5 {[%emt 0:09:35]} 15. d5 {[%emt 0:00:38]} Nc4 {[%emt 0:00:30]} 16. Bg5 {[%emt 0:08:48]} Nde5 {[%emt 0:04:34]} 17. Nxe5 {[%emt 0:04:01]} Nxe5 {[%emt 0:00:04]} 18. Rad1 {[%emt 0:00:03]} c4 {[%emt 0:16:08]} 19. b3 {[%emt 0:09:49]} Qc7 {[%emt 0:10:23]} 20. Kh1 {[%emt 0:08:13]} Rfe8 {[%emt 0:18:19]} 21. f4 {[%emt 0:01:31]} Nd3 {[%emt 0:00:54]} 22. bxc4 {[%emt 0:00:38]} Nb2 {[%emt 0:00:04]} 23. Rc1 {[%emt 0:00:44]} Nxc4 {[%emt 0:00:06]} 24. f5 {[%emt 0:00:41]} Rf8 {[%emt 0:05:24]} 25. d6 {[%emt 0:04:17]} 1-0

[Event "48th Rilton Cup 2018"]
[Site "Stockholm"]
[Date "2018.12.28"]
[Round "2"]
[White "D`Costa, Lorin A R"]
[Black "Volkov, Sergey"]
[Result "0-1"]
[ECO "D00"]
[WhiteElo "2390"]
[BlackElo "2583"]
[Annotator "ChessBase"]
[PlyCount "88"]
[EventDate "2018.12.27"]
[EventType "swiss"]
[EventCountry "SWE"]
[SourceTitle "playchess.com"]
[Source "ChessBase"]
[SourceQuality "1"]
[TimeControl "40/5400+30:1800+30"]

1. d4 {[%emt 0:00:00]} d5 {[%emt 0:00:00]} 2. Bf4 {[%emt 0:00:02]} c5 {[%emt 0:00:00]} 3. e3 {[%emt 0:00:21]} Nc6 {[%emt 0:00:06]} 4. c3 {[%emt 0:00:39]} Nf6 {[%emt 0:00:22]} 5. Nd2 {[%emt 0:01:57]} Bf5 {[%emt 0:00:54]} 6. Qb3 {[%emt 0:01:43]} Qc8 {[%emt 0:04:04]} 7. Ngf3 {[%emt 0:02:04]} c4 {[%emt 0:00:58]} 8. Qd1 {[%emt 0:03:19]} e6 {[%emt 0:03:24]} 9. Be2 {[%emt 0:08:00]} Be7 {[%emt 0:04:56]} 10. Ne5 {[%emt 0:10:38]} Nxe5 {[%emt 0:06:55]} 11. Bxe5 {[%emt 0:02:12]} O-O {[%emt 0:00:28]} 12. a4 {[%emt 0:04:27]} Nd7 {[%emt 0:05:04]} 13. Bg3 {[%emt 0:00:46]} a6 {[%emt 0:00:38]} 14. a5 {[%emt 0:07:32]} Qc6 {[%emt 0:00:31]} 15. O-O {[%emt 0:02:16]} Rfc8 {[%emt 0:00:30]} 16. Re1 {[%emt 0:08:26]} Bd6 {[%emt 0:04:40]} 17. Bxd6 {[%emt 0:19:19]} Qxd6 {[%emt 0:00:16]} 18. b3 {[%emt 0:06:48]} cxb3 {[%emt 0:01:52]} 19. Qxb3 {[%emt 0:00:09]} e5 {[%emt 0:00:41]} 20. Bf3 {[%emt 0:05:20]} Be6 {[%emt 0:03:46]} 21. Rec1 {[%emt 0:01:59]} Rc7 {[%emt 0:02:28]} 22. Qb4 {[%emt 0:04:36]} Qxb4 {[%emt 0:02:13]} 23. cxb4 {[%emt 0:01:38]} Rac8 {[%emt 0:00:06]} 24. Nb3 {[%emt 0:01:41]} Rxc1+ {[%emt 0:05:35]} 25. Rxc1 {[%emt 0:00:08]} Rxc1+ {[%emt 0:00:18]} 26. Nxc1 {[%emt 0:00:01]} exd4 {[%emt 0:00:08]} 27. exd4 {[%emt 0:00:12]} Nb8 {[%emt 0:00:05]} 28. Nb3 {[%emt 0:05:42]} Nc6 {[%emt 0:00:08]} 29. Nc5 {[%emt 0:01:07]} Nxd4 {[%emt 0:02:29]} 30. Nxb7 {[%emt 0:00:26]} Nc6 {[%emt 0:00:15]} 31. Nc5 {[%emt 0:01:28]} Nxb4 {[%emt 0:00:17]} 32. Kf1 {[%emt 0:00:24]} Kf8 {[%emt 0:01:31]} 33. Be2 {[%emt 0:00:34]} Bc8 {[%emt 0:01:02]} 34. Nd3 {[%emt 0:00:30]} Nxd3 {[%emt 0:04:56]} 35. Bxd3 {[%emt 0:00:01]} Ke7 {[%emt 0:00:13]} 36. Ke2 {[%emt 0:00:14]} Kd6 {[%emt 0:00:23]} 37. Bxh7 {[%emt 0:00:56]} g6 {[%emt 0:00:17]} 38. h4 {[%emt 0:00:33]} Ke5 {[%emt 0:01:14]} 39. h5 {[%emt 0:00:40]} gxh5 {[%emt 0:00:21]} 40. Ke3 {[%emt 0:00:38]} d4+ {[%emt 0:00:17]} 41. Kd3 {[%emt 0:30:18]} h4 {[%emt 0:30:41]} 42. Be4 {[%emt 0:00:00]} Bd7 {[%emt 0:00:00]} 43. Bb7 {[%emt 0:00:00]} Bb5+ {[%emt 0:00:00]} 44. Kd2 {[%emt 0:00:00]} Bc4 {[%emt 0:00:00]} 0-1

[Event "48th Rilton Cup 2018"]
[Site "Stockholm"]
[Date "2018.12.28"]
[Round "2"]
[White "Schekachikhin, Maksim"]
[Black "Yeoh, Li Tian"]
[Result "0-1"]
[ECO "A77"]
[WhiteElo "2368"]
[BlackElo "2508"]
[Annotator "ChessBase"]
[PlyCount "78"]
[EventDate "2018.12.27"]
[EventType "swiss"]
[EventCountry "SWE"]
[SourceTitle "playchess.com"]
[Source "ChessBase"]
[SourceQuality "1"]
[TimeControl "40/5400+30:1800+30"]

1. d4 {[%emt 0:00:00]} Nf6 {[%emt 0:00:00]} 2. c4 {[%emt 0:00:08]} c5 {[%emt 0:00:00]} 3. d5 {[%emt 0:00:06]} e6 {[%emt 0:00:00]} 4. Nc3 {[%emt 0:00:06]} exd5 {[%emt 0:00:05]} 5. cxd5 {[%emt 0:00:04]} d6 {[%emt 0:00:09]} 6. Nf3 {[%emt 0:00:06]} g6 {[%emt 0:00:08]} 7. Nd2 {[%emt 0:00:04]} Bg7 {[%emt 0:00:11]} 8. e4 {[%emt 0:00:06]} O-O {[%emt 0:00:28]} 9. Be2 {[%emt 0:00:26]} Re8 {[%emt 0:00:08]} 10. O-O {[%emt 0:00:09]} Nbd7 {[%emt 0:00:17]} 11. a4 {[%emt 0:00:42]} a6 {[%emt 0:02:39]} 12. Ra3 {[%emt 0:00:56]} Rb8 {[%emt 0:05:54]} 13. a5 {[%emt 0:00:43]} Ne5 {[%emt 0:08:48]} 14. Qc2 {[%emt 0:11:08]} g5 {[%emt 0:15:58]} 15. Nd1 {[%emt 0:10:52]} Ng6 {[%emt 0:09:40]} 16. Ne3 {[%emt 0:02:47]} Nf4 {[%emt 0:11:13]} 17. Bd1 {[%emt 0:01:38]} h5 {[%emt 0:11:23]} 18. f3 {[%emt 0:08:25]} Nd7 {[%emt 0:14:33]} 19. Nf5 {[%emt 0:11:08]} Bd4+ {[%emt 0:00:41]} 20. Kh1 {[%emt 0:02:17]} Ne5 {[%emt 0:00:29]} 21. g3 {[%emt 0:07:26]} Nh3 {[%emt 0:05:04]} 22. Kg2 {[%emt 0:12:54]} g4 {[%emt 0:00:08]} 23. Nxd4 {[%emt 0:07:59]} cxd4 {[%emt 0:00:11]} 24. f4 {[%emt 0:00:03]} Ng6 {[%emt 0:00:21]} 25. Qd3 {[%emt 0:01:39]} Bd7 {[%emt 0:07:52]} 26. Ba4 {[%emt 0:05:47]} Rc8 {[%emt 0:04:56]} 27. Nc4 {[%emt 0:07:34]} Rxc4 {[%emt 0:01:06]} 28. Qxc4 {[%emt 0:00:05]} Rxe4 {[%emt 0:00:05]} 29. Bxd7 Qxd7 {[%emt 0:00:08]} 30. Kh1 {[%emt 0:07:24]} Qe8 {[%emt 0:00:52]} 31. Bd2 {[%emt 0:02:13]} h4 {[%emt 0:01:30]} 32. Qd3 {[%emt 0:00:29]} Re2 {[%emt 0:00:29]} 33. Qxd4 {[%emt 0:00:14]} Rxh2+ {[%emt 0:00:31]} 34. Kxh2 {[%emt 0:00:28]} Qe2+ {[%emt 0:00:03]} 35. Rf2 {[%emt 0:00:42]} Nxf2 {[%emt 0:00:04]} 36. Re3 {[%emt 0:00:40]} Qf1 {[%emt 0:01:22]} 37. Re8+ Kh7 {[%emt 0:00:00]} 38. Re1 {[%emt 0:00:00]} Qh3+ {[%emt 0:00:00]} 39. Kg1 {[%emt 0:00:00]} hxg3 {[%emt 0:00:00]} 0-1

[Event "48th Rilton Cup 2018"]
[Site "Stockholm"]
[Date "2018.12.29"]
[Round "3"]
[White "Kobalia, Mikhail"]
[Black "Lalith Babu M R"]
[Result "1/2-1/2"]
[ECO "C80"]
[WhiteElo "2620"]
[BlackElo "2529"]
[Annotator "ChessBase"]
[PlyCount "68"]
[EventDate "2018.12.27"]
[EventType "swiss"]
[EventCountry "SWE"]
[SourceTitle "playchess.com"]
[Source "ChessBase"]
[SourceQuality "1"]
[TimeControl "40/5400+30:1800+30"]

1. e4 {[%emt 0:00:00]} e5 {[%emt 0:00:00]} 2. Nf3 {[%emt 0:00:00]} Nc6 {[%emt 0:00:00]} 3. Bb5 {[%emt 0:00:00]} a6 {[%emt 0:00:00]} 4. Ba4 {[%emt 0:00:00]} Nf6 {[%emt 0:00:00]} 5. O-O {[%emt 0:00:00]} Nxe4 {[%emt 0:00:09]} 6. d4 {[%emt 0:00:07]} b5 {[%emt 0:00:09]} 7. Bb3 {[%emt 0:00:05]} d5 {[%emt 0:00:05]} 8. dxe5 {[%emt 0:00:04]} Be6 {[%emt 0:00:07]} 9. Nbd2 {[%emt 0:00:14]} Be7 {[%emt 0:01:06]} 10. c3 {[%emt 0:00:32]} O-O {[%emt 0:00:15]} 11. Re1 {[%emt 0:05:33]} Nc5 {[%emt 0:01:37]} 12. Nd4 {[%emt 0:01:08]} Nxd4 {[%emt 0:00:34]} 13. cxd4 {[%emt 0:00:04]} Nd3 {[%emt 0:00:18]} 14. Re3 {[%emt 0:00:05]} Nf4 {[%emt 0:00:04]} 15. Nf3 {[%emt 0:07:54]} Bg4 {[%emt 0:05:38]} 16. h3 {[%emt 0:02:08]} Bh5 {[%emt 0:04:21]} 17. Rc3 {[%emt 0:01:29]} Ne6 {[%emt 0:01:50]} 18. Be3 {[%emt 0:02:23]} a5 {[%emt 0:17:19]} 19. g4 {[%emt 0:20:25]} Bg6 {[%emt 0:00:44]} 20. Bc2 {[%emt 0:00:46]} Bb4 {[%emt 0:06:22]} 21. Rb3 {[%emt 0:01:06]} f5 {[%emt 0:01:02]} 22. exf6 {[%emt 0:01:59]} Bxc2 {[%emt 0:00:15]} 23. Qxc2 {[%emt 0:00:06]} Qxf6 {[%emt 0:00:19]} 24. Ne5 {[%emt 0:03:24]} c5 {[%emt 0:00:48]} 25. Nd7 {[%emt 0:04:04]} Qf7 {[%emt 0:00:25]} 26. Nxf8 {[%emt 0:01:12]} Rxf8 {[%emt 0:00:10]} 27. a3 {[%emt 0:10:20]} c4 {[%emt 0:11:09]} 28. axb4 {[%emt 0:00:08]} cxb3 {[%emt 0:00:04]} 29. Qc6 {[%emt 0:19:05]} Ng5 {[%emt 0:17:44]} 30. Bxg5 {[%emt 0:00:44]} Qxf2+ {[%emt 0:00:05]} 31. Kh1 {[%emt 0:00:03]} Qf3+ {[%emt 0:00:09]} 32. Kh2 {[%emt 0:00:06]} Qe2+ {[%emt 0:00:15]} 33. Kg1 {[%emt 0:01:01]} Qf2+ {[%emt 0:00:29]} 34. Kh1 {[%emt 0:00:04]} Qf3+ 1/2-1/2

[Event "48th Rilton Cup 2018"]
[Site "Stockholm"]
[Date "2018.12.29"]
[Round "3"]
[White "Donchenko, Alexander"]
[Black "Limanovska, Elizabete"]
[Result "1-0"]
[ECO "B92"]
[WhiteElo "2604"]
[BlackElo "2071"]
[Annotator "ChessBase"]
[PlyCount "81"]
[EventDate "2018.12.27"]
[EventType "swiss"]
[EventCountry "SWE"]
[SourceTitle "playchess.com"]
[Source "ChessBase"]
[SourceQuality "1"]
[TimeControl "40/5400+30:1800+30"]

1. e4 {[%emt 0:00:00]} c5 {[%emt 0:00:07]} 2. Nf3 {[%emt 0:00:00]} d6 {[%emt 0:00:07]} 3. d4 {[%emt 0:00:00]} cxd4 {[%emt 0:00:07]} 4. Nxd4 {[%emt 0:00:00]} Nf6 {[%emt 0:00:09]} 5. Nc3 {[%emt 0:00:05]} a6 {[%emt 0:00:13]} 6. Be2 {[%emt 0:00:13]} e5 {[%emt 0:02:59]} 7. Nf3 {[%emt 0:00:16]} h6 {[%emt 0:05:14]} 8. Nd2 {[%emt 0:00:31]} Nc6 {[%emt 0:04:47]} 9. Nc4 {[%emt 0:14:42]} Nd4 {[%emt 0:09:37]} 10. a4 {[%emt 0:05:32]} Be6 {[%emt 0:02:49]} 11. a5 {[%emt 0:06:03]} Nxe2 {[%emt 0:06:12]} 12. Qxe2 {[%emt 0:00:31]} Bxc4 {[%emt 0:00:32]} 13. Qxc4 {[%emt 0:00:07]} Rc8 {[%emt 0:00:04]} 14. Qd3 {[%emt 0:02:33]} Qc7 {[%emt 0:10:29]} 15. O-O {[%emt 0:00:47]} Be7 {[%emt 0:09:11]} 16. Qg3 {[%emt 0:02:02]} g5 {[%emt 0:01:04]} 17. Bd2 {[%emt 0:08:01]} Qd7 {[%emt 0:14:22]} 18. Rfe1 {[%emt 0:10:30]} Nh5 {[%emt 0:01:15]} 19. Qd3 {[%emt 0:01:46]} Nf4 {[%emt 0:02:20]} 20. Bxf4 {[%emt 0:01:03]} gxf4 {[%emt 0:01:41]} 21. Nd5 {[%emt 0:01:37]} Bd8 {[%emt 0:02:38]} 22. c4 {[%emt 0:06:11]} Rg8 {[%emt 0:01:56]} 23. f3 {[%emt 0:01:35]} h5 {[%emt 0:10:42]} 24. b4 {[%emt 0:04:04]} h4 {[%emt 0:01:24]} 25. Kh1 {[%emt 0:00:46]} h3 {[%emt 0:02:21]} 26. Rg1 {[%emt 0:00:42]} hxg2+ {[%emt 0:01:55]} 27. Rxg2 {[%emt 0:00:03]} Rxg2 {[%emt 0:00:07]} 28. Kxg2 {[%emt 0:00:07]} Qe6 {[%emt 0:00:29]} 29. Rg1 {[%emt 0:02:42]} Qh6 {[%emt 0:01:40]} 30. Kh1 {[%emt 0:01:05]} Qh8 {[%emt 0:03:06]} 31. Qb3 {[%emt 0:07:27]} Bh4 {[%emt 0:01:54]} 32. Rg4 {[%emt 0:02:33]} Kf8 {[%emt 0:01:32]} 33. Kg2 {[%emt 0:00:20]} Re8 {[%emt 0:00:35]} 34. Qc3 {[%emt 0:04:34]} Qh5 {[%emt 0:01:04]} 35. c5 {[%emt 0:01:00]} Rc8 {[%emt 0:01:04]} 36. Nb6 {[%emt 0:03:39]} Rc6 {[%emt 0:00:24]} 37. Qd3 {[%emt 0:01:55]} Qh6 {[%emt 0:01:36]} 38. Qd5 {[%emt 0:00:53]} Bd8 {[%emt 0:00:38]} 39. Nd7+ {[%emt 0:05:32]} Ke7 {[%emt 0:00:05]} 40. Nb8 {[%emt 0:00:04]} Rc7 {[%emt 0:00:14]} 41. Rg8 {[%emt 0:30:05]} 1-0

[Event "48th Rilton Cup 2018"]
[Site "Stockholm"]
[Date "2018.12.29"]
[Round "3"]
[White "Volkov, Sergey"]
[Black "Thybo, Jesper Sondergaard"]
[Result "1/2-1/2"]
[ECO "E25"]
[WhiteElo "2583"]
[BlackElo "2519"]
[Annotator "ChessBase"]
[PlyCount "61"]
[EventDate "2018.12.27"]
[EventType "swiss"]
[EventCountry "SWE"]
[SourceTitle "playchess.com"]
[Source "ChessBase"]
[SourceQuality "1"]
[TimeControl "40/5400+30:1800+30"]

1. d4 {[%emt 0:00:00]} Nf6 {[%emt 0:00:00]} 2. c4 {[%emt 0:00:00]} e6 {[%emt 0:00:00]} 3. Nc3 {[%emt 0:00:00]} Bb4 {[%emt 0:00:00]} 4. f3 {[%emt 0:00:10]} d5 {[%emt 0:00:29]} 5. a3 {[%emt 0:00:08]} Bxc3+ {[%emt 0:00:08]} 6. bxc3 {[%emt 0:00:06]} c5 {[%emt 0:00:04]} 7. cxd5 {[%emt 0:00:10]} Nxd5 {[%emt 0:00:06]} 8. dxc5 {[%emt 0:00:14]} Qa5 {[%emt 0:00:25]} 9. e4 {[%emt 0:00:07]} Ne7 {[%emt 0:00:05]} 10. Be3 {[%emt 0:00:19]} O-O {[%emt 0:00:24]} 11. Qb3 {[%emt 0:00:18]} Qc7 {[%emt 0:00:18]} 12. Bb5 {[%emt 0:00:19]} Nec6 {[%emt 0:00:50]} 13. Nh3 {[%emt 0:01:48]} Na5 {[%emt 0:16:21]} 14. Qa4 {[%emt 0:11:08]} e5 {[%emt 0:03:46]} 15. Nf2 {[%emt 0:02:48]} a6 {[%emt 0:07:21]} 16. Be2 {[%emt 0:01:11]} b5 {[%emt 0:00:35]} 17. Qc2 {[%emt 0:01:38]} Be6 {[%emt 0:01:06]} 18. Nd3 {[%emt 0:02:38]} Nd7 {[%emt 0:02:24]} 19. O-O {[%emt 0:04:46]} Bb3 {[%emt 0:04:26]} 20. Qb1 {[%emt 0:03:37]} Bc4 {[%emt 0:00:55]} 21. a4 {[%emt 0:02:52]} Nxc5 {[%emt 0:09:46]} 22. axb5 {[%emt 0:07:02]} axb5 {[%emt 0:00:40]} 23. Nxc5 {[%emt 0:09:25]} Bxe2 {[%emt 0:00:27]} 24. Re1 {[%emt 0:02:21]} Bc4 {[%emt 0:00:11]} 25. Rd1 {[%emt 0:00:43]} Rfd8 {[%emt 0:02:36]} 26. Rxd8+ {[%emt 0:06:58]} Qxd8 {[%emt 0:02:19]} 27. Qe1 {[%emt 0:12:47]} Nb3 {[%emt 0:02:40]} 28. Rxa8 {[%emt 0:11:24]} Qxa8 {[%emt 0:00:11]} 29. Nxb3 {[%emt 0:00:10]} Bxb3 {[%emt 0:00:04]} 30. h3 {[%emt 0:00:11]} Qd8 {[%emt 0:04:56]} 31. Qd2 {[%emt 0:01:10]} 1/2-1/2